Cogmind - Beta 10.2 @@@ ROGUE MODE // 2021.06.20 @ 19:54:10 Player: the cat Result: Destroyed by 8R-AWN with 8R-AWN's Boregun Performance ------------- Evolutions (0) 0 Regions Visited (3) 600 Robots Destroyed (9) 45 Value Destroyed (173) 173 Prototype IDs (0) 0 Alien Tech Used (0) 0 Bonus (0) 0 TOTAL SCORE: 818 Bonus ------- None Cogmind --------- Core Integrity 0/250 Matter 232/300 Energy 100/100 System Corruption 3% Temperature Cool (0) Movement Core (550) Ox10 Location -10/Exiles Parts ------- > --- POWER (1) -------- (None) > --- PROPULSION (2) --- (None) > --- UTILITY (2) ------ Large Storage Unit Large Storage Unit > --- WEAPON (2) ------- (None) > --- INVENTORY (16) --- Ion Engine Light Treads Wheel Compact Wheel High-capacity Matter Pod (0) EM Pulse Gun Small Laser Assault Rifle Assault Rifle Light Assault Rifle Mining Laser Peak State ------------ > --- POWER ------------ Ion Engine > --- PROPULSION ------- Light Treads Wheel > --- UTILITY ---------- Large Storage Unit Large Storage Unit > --- WEAPON ----------- EM Pulse Gun Rocket Launcher > --- INVENTORY -------- Ion Engine Light Treads Wheel Compact Wheel High-capacity Matter Pod EM Pulse Gun Small Laser Assault Rifle Assault Rifle Light Assault Rifle Mining Laser [Rating: 9] Favorites ----------- Power Ion Engine Engine Ion Engine Propulsion Wheel Treads Light Treads Wheel Wheel Utility Large Storage Unit Device Heat Sink Storage Large Storage Unit Weapon Assault Rifle Energy Gun EM Pulse Gun Ballistic Gun Assault Rifle Launcher Rocket Launcher Build | -11 -10 -10 -10 ------- Run | Scr Mat Min Exi Slots Evolved . | . . . . Power . | . . . . Propulsion . | . . . . Utility . | . . . . Weapon . | . . . . Parts Attached 13 | 6 5 . 2 Power 2 | 1 1 . . Engine 2 | 1 1 . . Core . | . . . . Reactor . | . . . . Propulsion 2 | 2 . . . Treads 1 | 1 . . . Leg . | . . . . Wheel 1 | 1 . . . Hover . | . . . . Flight . | . . . . Utility 4 | 1 3 . . Device 1 | . 1 . . Storage 3 | 1 2 . . Processor . | . . . . Hackware . | . . . . Protection . | . . . . Artifact . | . . . . Weapon 5 | 2 1 . 2 Energy Gun 3 | 1 1 . 1 Energy Cannon . | . . . . Ballistic Gun 1 | 1 . . . Ballistic Cannon . | . . . . Launcher 1 | . . . 1 Special Weapon . | . . . . Impact Weapon . | . . . . Slashing Weapon . | . . . . Piercing Weapon . | . . . . Special Melee Weapon . | . . . . Unidentified Prototypes . | . . . . Parts Lost 6 | . 1 . 5 Power 1 | . . . 1 Propulsion 2 | . . . 2 Utility . | . . . . Weapon 3 | . 1 . 2 Highest Loss Streak 5 | . 1 . 5 Average Slot Usage (%) 95 | . 95 100 95 Engine 14 | . 14 14 14 Treads 13 | . 14 14 13 Wheel 14 | . 14 14 14 Device 1 | . 2 . . Storage 23 | . 21 28 28 Energy Gun 13 | . 13 14 13 Ballistic Gun 12 | . 14 14 9 Naked Turns . | . . . . Heaviest Build 41 | 13 41 41 41 Greatest Support 20 | 20 10 10 10 Greatest Overweight (x) 10 | 1 4 4 10 Average Overweight (x) 3 | . 2 4 4 Largest Inventory Capacity 16 | 6 16 16 16 Average Capacity 12 | 5 11 16 16 Most Carried 11 | 4 10 11 11 Average Carried 7 | 2 6 10 11 Final Capacity 16 | 6 16 16 16 Final Carried 11 | 4 10 11 11 Class Distribution -------------------- 100% | Mutant Dominant Class ---------------- Mutant | -10/Materials Mutant | -10/Mines Mutant | -10/Exiles Resources | -11 -10 -10 -10 ----------- Run | Scr Mat Min Exi Matter Collected 360 | 238 122 . . Remotely . | . . . . Salvage Created 306 | . 281 . 25 Parts 18 | . 18 . . Haulers Intercepted 1 | . 1 . . Recyclers Shooed . | . . . . Parts Field Recycled . | . . . . Retrieved Matter . | . . . . Parts Self-Destructed . | . . . . Prevented . | . . . . Kills | -11 -10 -10 -10 ------- Run | Scr Mat Min Exi Combat Hostiles Destroyed 13 | . 7 . 6 Guns 8 | . 7 . 1 AOE 5 | . . . 5 Classes Destroyed 5 | . 4 . 1 Builder 1 | . 1 . . Hauler 1 | . 1 . . Swarmer 3 | . 3 . . Grunt 4 | . 4 . . Assembled 6 | . . . 6 Best Kill Streak 6 | . 6 . 6 Combat Bots Only 6 | . 6 . 6 Max Kills in Single Turn 3 | . 1 . 3 Gunslinging . | . . . . Exploded 3 | . . . 3 Melee . | . . . . Uniques/NPCs Destroyed . | . . . . Combat | -11 -10 -10 -10 -------- Run | Scr Mat Min Exi Damage Taken 902 | . 275 . 627 Core 257 | . 76 . 181 Absorbed by Shields . | . . . . Core Remaining (%) 100 | 100 . . . Volleys Fired 33 | . 25 . 8 Largest 2 | . 2 . 2 Hottest 80 | . 70 . 80 Shots Fired 61 | . 49 . 12 Gun 57 | . 49 . 8 Cannon . | . . . . Launcher 4 | . . . 4 Special . | . . . . Kinetic 25 | . 25 . . Thermal 13 | . 13 . . Explosive 4 | . . . 4 Electromagnetic 19 | . 11 . 8 Robot Hit Streak 9 | . 9 . 4 Robot Miss Streak 5 | . 5 . 4 Penetration Max . | . . . . Secondary Targets . | . . . . Shots Hit Robots 36 | . 30 . 6 Core Hits 29 | . 14 . 15 Critical Hits 1 | . 1 . . Critical Kills . | . . . . Critical Parts Destroyed 1 | . 1 . . Melee Attacks . | . . . . Impact . | . . . . Slashing . | . . . . Piercing . | . . . . Sneak Attacks . | . . . . Combat Hostiles . | . . . . Follow-up Attacks . | . . . . Damage Inflicted 941 | . 442 . 499 Guns 403 | . 377 . 26 Cannons . | . . . . Explosions 538 | . 65 . 473 Melee . | . . . . Ramming . | . . . . Kinetic 159 | . 159 . . Thermal 189 | . 189 . . Explosive 473 | . . . 473 Electromagnetic 120 | . 94 . 26 Impact . | . . . . Slashing . | . . . . Piercing . | . . . . Highest Corruption 3 | . . . 3 Average Corruption 3 | . . . 3 Corruption Purged . | . . . . Effects 1 | . . . 1 Matter Fused 1 | . . . 1 Overload Shots . | . . . . Overflow Damage 21 | . . . 21 Projectiles . | . . . . Explosions 21 | . . . 21 Melee . | . . . . Knockbacks . | . . . . Impact . | . . . . Kinetic . | . . . . Secondary . | . . . . Self-Inflicted Damage 77 | . 14 . 63 Shots 3 | . 1 . 2 Rammed . | . . . . Targets Rammed . | . . . . Kicked . | . . . . Crushed . | . . . . Highest Temperature 111 | . 111 . 54 Average Temperature 41 | . 47 . 27 Received Heat Transfer 170 | . 90 . 80 Siege Activations . | . . . . Robots Corrupted . | . . . . Combat Hostiles . | . . . . Parts Fried . | . . . . Impact Corruptions . | . . . . Robots Melted . | . . . . Combat Hostiles . | . . . . Parts Melted 1 | . 1 . . Heat Transferred 470 | . 470 . . Parts Sabotaged . | . . . . Parts Stolen . | . . . . Parts Stripped . | . . . . Power Chain Reactions 2 | . 2 . . Missiles Intercepted . | . . . . Alert | -11 -10 -10 -10 ------- Run | Scr Mat Min Exi Peak Influence 166 | . 166 64 . Initial 64 | . . 64 . Average 104 | . 124 64 . Maximum Alert Level . | . . . . Low Security (%) 100 | 100 100 100 . Level 1 . | . . . . Level 2 . | . . . . Level 3 . | . . . . Level 4 . | . . . . Level 5 . | . . . . High Security . | . . . . Max Security . | . . . . Squads Dispatched 2 | . 2 . . Investigation 2 | . 2 . . Extermination . | . . . . Reinforcement . | . . . . Assault . | . . . . Garrison . | . . . . Intercept . | . . . . Construction Impeded . | . . . . Haulers Reinforced . | . . . . Stealth | -11 -10 -10 -10 --------- Run | Scr Mat Min Exi Distress Signals . | . . . . Communications Jammed . | . . . . Distress Signals . | . . . . Times Spotted 18 | . 10 . 8 Peak Tracking Total 9 | . 7 . 9 Tactical Retreats 1 | . . . 1 Traps | -11 -10 -10 -10 ------- Run | Scr Mat Min Exi Traps Triggered 1 | . 1 . . Indirectly . | . . . . Trap Hack Attempts . | . . . . Triggered . | . . . . Disarmed . | . . . . Reprogrammed . | . . . . Reused . | . . . . Traps Extracted . | . . . . Installed . | . . . . Triggered . | . . . . Machines | -11 -10 -10 -10 ---------- Run | Scr Mat Min Exi Machines Disabled 2 | . . . 2 Max in Single Turn 1 | . . . 1 Machines Sabotaged . | . . . . Garrisons Compromised . | . . . . Overloaded Fab Kills . | . . . . Fab Network Shutdowns . | . . . . Hacking | -11 -10 -10 -10 --------- Run | Scr Mat Min Exi Machines Accessed 5 | . 5 . . Terminals 5 | . 5 . . Fabricators . | . . . . Repair Stations . | . . . . Recycling Units . | . . . . Scanalyzers . | . . . . Garrison Access . | . . . . Total Hacks 16 | . 16 . . Successful 5 | . 5 . . Failed 11 | . 11 . . Catastrophic 3 | . 3 . . Database Lockouts . | . . . . Manual 11 | . 11 . . Terminals 16 | . 16 . . Fabricators . | . . . . Repair Stations . | . . . . Recycling Units . | . . . . Scanalyzers . | . . . . Garrison Access . | . . . . Terminal Hacks 4 | . 4 . . Part Schematic 1 | . 1 . . Locate Traps 2 | . 2 . . Zone Layout 1 | . 1 . . Fabricator Hacks . | . . . . Repair Station Hacks . | . . . . Recycling Unit Hacks . | . . . . Scanalyzer . | . . . . Garrison Access Hacks . | . . . . Unauthorized Hacks 1 | . 1 . . Terminals 1 | . 1 . . Track 1 | . 1 . . Fabricators . | . . . . Repair Stations . | . . . . Recycling Units . | . . . . Scanalyzers . | . . . . Garrison Access . | . . . . Data Cores Recovered . | . . . . Used . | . . . . Hacking Detections 5 | . 5 . . Full Trace Events 1 | . 1 . . Feedback Events . | . . . . Feedback Blocked . | . . . . Robot Schematics Acquired . | . . . . Robots Built . | . . . . Matter . | . . . . Time . | . . . . Total Robot Build Rating . | . . . . Part Schematics Acquired 1 | . 1 . . Parts Built . | . . . . Matter . | . . . . Time . | . . . . Total Part Build Rating . | . . . . Parts Repaired . | . . . . Time . | . . . . Parts Recycled . | . . . . Recycled Matter . | . . . . Retrieved Matter . | . . . . Retrieved Components . | . . . . Parts Scanalyzed . | . . . . Part Schematics Acquired . | . . . . Parts Damaged . | . . . . Bothacking | -11 -10 -10 -10 ------------ Run | Scr Mat Min Exi Used RIF Installer . | . . . . Robots Hacked . | . . . . Non-combat . | . . . . Combat . | . . . . Robot Hacks Applied . | . . . . Relay Couplers Released . | . . . . Robots Rewired . | . . . . Allies Hacked . | . . . . Hacks Repelled . | . . . . Allies | -11 -10 -10 -10 -------- Run | Scr Mat Min Exi Total Allies . | . . . . Largest Group . | . . . . Highest-Rated Group . | . . . . Highest-Rated Ally . | . . . . Total Orders . | . . . . Ally Attacks . | . . . . Total Damage . | . . . . Kills . | . . . . Allies Corrupted . | . . . . Allies Melted . | . . . . Intel | -11 -10 -10 -10 ------- Run | Scr Mat Min Exi Robot Analysis Total . | . . . . Derelict Logs Recovered . | . . . . Drone Launches . | . . . . Drone Recoveries . | . . . . Exploration | -11 -10 -10 -10 ------------- Run | Scr Mat Min Exi Turns Passed 616 | 56 372 41 147 Spaces Moved 434 | 45 254 34 101 Core 2 | 1 . . 1 Treads 1 | 1 . . . Legs . | . . . . Wheels 431 | 43 254 34 100 Hover . | . . . . Flight . | . . . . Fastest Speed 50 | 50 90 120 110 Average Speed 111 | 86 108 120 123 Slowest Speed 550 | 160 120 120 550 Overloaded Moves . | . . . . Propulsion Burnouts . | . . . . Robots Hopped . | . . . . Cave-ins Triggered . | . . . . Exploration Rate (%) 26 | 3 51 9 42 Regions Visited 3 Branch Regions 2 Pre-discovered Areas . | . . . . Known Exits Taken . | . . . . Unknown Exits Taken 3 | 1 1 1 . Scrap Searched . | . . . . Spaces Dug . | . . . . Terrain Destroyed 19 | . 5 . 14 Melee . | . . . . Projectile . | . . . . AOE 19 | . 5 . 14 Terrain Rammed . | . . . . Walls Destroyed . | . . . . Machines Disabled . | . . . . Actions | -11 -10 -10 -10 --------- Run | Scr Mat Min Exi Total 504 | 58 301 34 111 Wait 10 | 4 6 . . Move 431 | 44 253 33 101 Hop . | . . . . Pick Up 13 | 4 8 1 . Fast Attach 8 | 6 2 . . Attach 1 | . 1 . . Detach . | . . . . Swap 4 | . 2 . 2 Drop 4 | . 4 . . Fire 33 | . 25 . 8 Melee . | . . . . Ram . | . . . . Kick . | . . . . Crush . | . . . . Escape Stasis . | . . . . Rewire . | . . . . Trap . | . . . . Miscellaneous . | . . . . Route ------- -11/Scrapyard -10/Materials (discovered 3 exits: [*Mat x2] / [*Min]) -10/Mines -10/Exiles (discovered 1 exit: [*Min]) History --------- Turn | Location | Event 30 | -11/Scrapyard | Discovered new exit (range 15) 57 | -11/Scrapyard | Entered Materials 183 | -10/Materials | Discovered new exit (range 14) 294 | -10/Materials | Discovered new exit (range 16) 311 | -10/Materials | Build established: Mutant 371 | -10/Materials | Discovered new exit (range 10) 429 | -10/Materials | Entered Mines 436 | -10/Mines | Received a Rocket Launcher from a helpful Derelict 465 | -10/Mines | Deemed a non-threat by the Exiles lab entrance 465 | -10/Mines | Discovered new exit (range 5) 470 | -10/Mines | Entered Exiles 488 | -10/Exiles | Discovered new exit (range 15) 503 | -10/Exiles | Met 8R-AWN 520 | -10/Exiles | Met EX-HEX 552 | -10/Exiles | Met EX-BIN 568 | -10/Exiles | Attacked by the Exiles 612 | -10/Exiles | Core integrity fell below 50% 613 | -10/Exiles | Core integrity fell below 20% 617 | -10/Exiles | Destroyed by 8R-AWN with 8R-AWN's Boregun Last Messages --------------- 00604_ Penetrated by HV Slug. 00604_ HV Slug penetrates Machine. 00604_ Penetrated by HV Slug. 00604_ HV Slug penetrates Wall. 00608_ Penetrated by HV Slug. 00608_ Critical hit. 00608_ Lgt. Treads destroyed. 00608_ HV Slug penetrates Machine. 00608_ Penetrated by HV Slug. 00608_ HV Slug penetrates Machine. 00610_ Penetrated by HV Slug. 00610_ Critical hit. 00610_ Rocket Launcher destroyed. 00610_ HV Slug penetrates Machine. 00610_ Penetrated by HV Slug. 00610_ HV Slug penetrates Machine. 00612_ Penetrated by HV Slug. 00612_ Wheel destroyed. 00612_ Ion Engine destroyed. 00614_ Penetrated by HV Slug. Map ----- +----------------------------------------------------+ | ?????????????????????????????????# ???#####??? | | ?????????????????????????????????# ??#"""""??? | | ?????????????????????????????????# #?#"""""""# | | ?????????????????????????????????# #?#"""""""# | | ????????????????????????????????## ###"" """"# | | ????????????????????????????????#" """"# | | ????????????????????????????????#" """# | | ????????????????????????????????#" """# | | ????????????????????????????????#" """# | | ????????????????????????????????#" """# | | ????????????????????????????????#" """# | | ????????????????????????????????## """" | | ?????????????????????????????????# """# | | ?????????????????????????????????#" X """" | | ????????????????????????????????## " # | | ?????????????????? ????????????# """""# | | ???????????????????" ???????????# # ##### | | ???????????????????# ??????????##" # ##???? | | ?????????????????#?# ##??######"" #####????? | | ????????????"#####X# #"### """ ##????????? | | ???????????? """ ##???##### | | ??????????? "" #####"""" | | ??????????? " " " "" | | ?????????? "" | | ?????????? " | | ?????????? @ | | ??????????# | | ???????????#" | | ????????????""" """""" | | ????????????" ######""" | | ????????????" ""##????#####""" | | ????????????"" """##?????????##""" | | ????????????? """##???????????#"""" | | ????????????? ""#????????????#"" | | ????????????? ##????????????"""" | | ?????????????? ??????????????" | | ?????????????? ????????????" | | ???????????????? ????????????? | | ?????????????????? ????????????? | | ????????????????????? ?????????????? " | | ?????????????????????????????????????? "" " | | ????????????????????????????????????????"" " " "" | | ?????????????????????????????????????????##""" """ | | ??????????????????????????????????????????###"""?? | | ????????????????????????????????????????????##???? | | ?????????????????????????????????????????????????? | | ?????????????????????????????????????????????????? | | ?????????????????????????????????????????????????? | | ?????????????????????????????????????????????????? | | ?????????????????????????????????????????????????? | +----------------------------------------------------+ Best States ------------- Heat Dissipation 35 Energy Generation 10 Energy Capacity 250 Matter Stores 300 Matter Capacity 300 Sight Range 16 Terrain Scan Density 10 Evasion (%) 44 Recoil Reduction 1 Item Schematics ----------------- Hcp. Storage Unit | -10/Materials | Hacked Robot Schematics ------------------ None Fabricated ------------ Nothing Alien Tech Used ----------------- None Achievements -------------- None Challenges ------------ None Game ------ Seed ReactiveVortexBarrier Manual? 0 Play Time 00:07:08 Cumulative 139.0 hours Start 2021.06.20 @ 19:48:40 End 2021.06.20 @ 19:54:10 Sessions 1 Manual Loads 0 Difficulty Rogue Special Mode None Game No. 43 Rogue 26 Adventurer 17 Explorer 0 Win Type - Total 7 Types 5/0/1/1/0/0/0/0/0 Lore% 66 Gallery% 65 Achievement% 57 Wizard Run 0 Options --------- ASCII 0 Keyboard 0 Movement Arrows Keybinds 0 Fullscreen 1 Font 28/Dina Map View 72x54 Tactical HUD 1 Map Filters NONE Filters NONE Steam 1 RUN: 2c02fc14-b5a4-4018-83d1-2f2abb2aaf68